fUST/lending_fUST_20250527
["ID","MTS","AMOUNT","RATE_DAILY","PERIOD"]
[362523017,1748350259548,-4353.75511924,0.00022141,6]
[362523018,1748350259557,-151.0,0.00022191,7]
[362523019,1748350259567,-430.0,0.00022191,2]
[362523020,1748350259577,-430.0,0.00022191,2]
[362523021,1748350259587,-829.657189,0.00022191,2]
[362523022,1748350259596,-829.657189,0.00022191,2]
[362523023,1748350259608,-430.0,0.00022191,2]
[362523024,1748350259618,-569.83177003,0.00022191,2]
[362523025,1748350259628,-430.0,0.00022191,2]
[362523026,1748350259638,-430.0,0.00022191,2]
[362523027,1748350259647,-874.8,0.00022191,2]
[362523028,1748350259658,-430.0,0.00022191,2]
[362523029,1748350259668,-944.3,0.00022191,2]
[362523030,1748350259678,-430.0,0.00022191,2]
[362523031,1748350259687,-1877.1,0.00022191,2]
[362523032,1748350259697,-430.0,0.00022191,2]
[362523033,1748350259707,-151.0,0.00022191,7]
[362523034,1748350259717,-151.0,0.00022191,7]
[362523035,1748350259727,-430.0,0.00022191,2]
[362523036,1748350259737,-430.0,0.00022191,2]
[362523037,1748350259747,-430.0,0.00022191,2]
[362523038,1748350259756,-430.0,0.00022191,2]
[362523039,1748350259766,-430.0,0.00022191,2]
[362523040,1748350259776,-430.0,0.00022191,2]
[362523041,1748350259786,-1538.68,0.00022191,2]
[362523042,1748350259795,-726.652147,0.00022191,7]
[362523043,1748350259804,-151.0,0.00022191,7]
[362523044,1748350259814,-726.652147,0.00022191,7]
[362523045,1748350259823,-430.0,0.00022191,2]
[362523046,1748350259834,-430.0,0.00022191,2]
[362523047,1748350259844,-430.0,0.00022191,2]
[362523048,1748350259855,-998.65,0.00022191,2]
[362523049,1748350259864,-2190.9,0.00022191,2]
[362523050,1748350259874,-1929.8,0.00022191,2]
[362523051,1748350259884,-430.0,0.00022191,2]
[362523052,1748350259894,-601.23,0.00022191,2]
[362523053,1748350259904,-430.0,0.00022191,2]
[362523054,1748350259914,-430.0,0.00022191,2]
[362523055,1748350259924,-430.0,0.00022191,2]
[362523056,1748350259934,-490.23,0.00022191,2]
[362523057,1748350259944,-430.0,0.00022191,2]
[362523058,1748350259953,-232.49,0.00022191,2]
[362523059,1748350259962,-430.0,0.00022191,2]
[362523060,1748350259972,-353.15,0.00022191,2]
[362523061,1748350259982,-430.0,0.00022191,2]
[362523062,1748350259992,-430.0,0.00022191,2]
[362523063,1748350260002,-430.0,0.00022191,2]
[362523064,1748350260012,-430.0,0.00022191,2]
[362523065,1748350260021,-430.0,0.00022191,2]
[362523066,1748350260031,-889.42,0.00022191,2]
[362523067,1748350260041,-499.66,0.00022191,2]
[362523068,1748350260051,-430.0,0.00022191,2]
[362523069,1748350260063,-580.34,0.00022191,2]
[362523070,1748350260074,-566.21,0.00022191,2]
[362523071,1748350260084,-430.0,0.00022191,2]
[362523072,1748350260096,-430.0,0.00022191,2]
[362523073,1748350260106,-4353.75511924,0.00022314,7]
[362523074,1748350260117,-306.0,0.00022329,2]
[362523075,1748350260127,-430.0,0.00022465,2]
[362523076,1748350260138,-430.0,0.00022465,2]
[362523077,1748350260148,-430.0,0.00022465,2]
[362523078,1748350260158,-430.0,0.00022465,2]
[362523079,1748350260168,-430.0,0.00022465,2]
[362523080,1748350260179,-874.8,0.00022465,2]
[362523081,1748350260189,-430.0,0.00022465,2]
[362523082,1748350260200,-944.3,0.00022465,2]
[362523083,1748350260209,-430.0,0.00022465,2]
[362523084,1748350260220,-1877.1,0.00022465,2]
[362523085,1748350260230,-430.0,0.00022465,2]
[362523086,1748350260240,-430.0,0.00022465,2]
[362523087,1748350260251,-430.0,0.00022465,2]
[362523088,1748350260261,-430.0,0.00022465,2]
[362523089,1748350260272,-430.0,0.00022465,2]
[362523090,1748350260282,-430.0,0.00022465,2]
[362523091,1748350260292,-1538.68,0.00022465,2]
[362523092,1748350260302,-430.0,0.00022465,2]
[362523093,1748350260317,-355.08,0.00022465,2]
[362523094,1748350260327,-430.0,0.00022465,2]
[362523095,1748350260337,-998.65,0.00022465,2]
[362523096,1748350260347,-2190.9,0.00022465,2]
[362523097,1748350260359,-1929.8,0.00022465,2]
[362523098,1748350260368,-430.0,0.00022465,2]
[362523099,1748350260378,-601.23,0.00022465,2]
[362523100,1748350260388,-430.0,0.00022465,2]
[362523101,1748350260399,-430.0,0.00022465,2]
[362523102,1748350260410,-430.0,0.00022465,2]
[362523103,1748350260420,-490.23,0.00022465,2]
[362523104,1748350260429,-296.61,0.00022465,2]
[362523105,1748350260439,-430.0,0.00022465,2]
[362523106,1748350260449,-430.0,0.00022465,2]
[362523107,1748350260458,-430.0,0.00022465,2]
[362523108,1748350260468,-430.0,0.00022465,2]
[362523109,1748350260479,-430.0,0.00022465,2]
[362523110,1748350260489,-317.34,0.00022465,2]
[362523111,1748350260498,-889.42,0.00022465,2]
[362523112,1748350260508,-499.66,0.00022465,2]
[362523113,1748350260518,-430.0,0.00022465,2]
[362523114,1748350260528,-580.34,0.00022465,2]
[362523115,1748350260538,-566.21,0.00022465,2]
[362523116,1748350260548,-430.0,0.00022465,2]
[362523117,1748350260557,-430.0,0.00022465,2]
[362523118,1748350260567,-4353.75511924,0.00022486,7]
[362523119,1748350260577,-226.87145274,0.00022558,2]
[362523120,1748350260587,-4353.75511924,0.00022659,7]
[362523121,1748350260597,-151.0,0.00022739,7]
[362523122,1748350260608,-430.0,0.00022739,2]
[362523123,1748350260617,-278.995255,0.00022739,7]
[362523124,1748350260627,-430.0,0.00022739,2]
[362523125,1748350260734,-501.64,0.00022739,2]
[362523126,1748350260745,-430.0,0.00022739,2]
[362523127,1748350260755,-874.8,0.00022739,2]
[362523128,1748350260764,-430.0,0.00022739,2]
[362523129,1748350260783,-944.3,0.00022739,2]
[362523130,1748350260794,-430.0,0.00022739,2]
[362523131,1748350260805,-1877.1,0.00022739,2]
[362523132,1748350260815,-430.0,0.00022739,2]
[362523133,1748350260825,-430.0,0.00022739,2]
[362523134,1748350260834,-430.0,0.00022739,2]
[362523135,1748350260843,-430.0,0.00022739,2]
[362523136,1748350260853,-430.0,0.00022739,2]
[362523137,1748350260863,-430.0,0.00022739,2]
[362523138,1748350260872,-1538.68,0.00022739,2]
[362523139,1748350260882,-430.0,0.00022739,2]
[362523140,1748350260892,-998.65,0.00022739,2]
[362523141,1748350260901,-2190.9,0.00022739,2]
[362523142,1748350260911,-1929.8,0.00022739,2]
[362523143,1748350260920,-552.94,0.00022739,2]
[362523144,1748350260929,-601.23,0.00022739,2]
[362523145,1748350260939,-411.24,0.00022739,2]
[362523146,1748350260948,-430.0,0.00022739,2]
[362523147,1748350260958,-430.0,0.00022739,2]
[362523148,1748350260967,-490.23,0.00022739,2]
[362523149,1748350260976,-430.0,0.00022739,2]
[362523150,1748350260986,-430.0,0.00022739,2]
[362523151,1748350260996,-430.0,0.00022739,2]
[362523152,1748350261006,-430.0,0.00022739,2]
[362523153,1748350261017,-430.0,0.00022739,2]
[362523154,1748350261027,-889.42,0.00022739,2]
[362523155,1748350261037,-499.66,0.00022739,2]
[362523156,1748350261047,-430.0,0.00022739,2]
[362523157,1748350261057,-151.0,0.00022739,7]
[362523158,1748350261067,-580.34,0.00022739,2]
[362523159,1748350261076,-566.21,0.00022739,2]
[362523160,1748350261086,-430.0,0.00022739,2]
[362523161,1748350261096,-151.0,0.00022739,7]
[362523162,1748350261107,-430.0,0.00022739,2]
[362523163,1748350261117,-4353.75511924,0.00022831,8]
[362523164,1748350261127,-501.85,0.00022885,2]
[362523165,1748350261137,-661.602537,0.00022888,3]
[362523166,1748350261147,-163.53678,0.00022996,7]
[362523167,1748350261156,-160.0,0.00023,3]
[362523168,1748350261166,-160.0,0.00023,3]
[362523169,1748350261176,-229.18805157,0.00023,3]
[362523170,1748350261186,-423.16111059,0.00023,3]
[362523171,1748350261196,-4353.75511924,0.00023003,8]
[362523172,1748350261205,-430.0,0.00023013,2]
[362523173,1748350261216,-829.657189,0.00023013,2]
[362523174,1748350261225,-829.657189,0.00023013,2]
[362523175,1748350261234,-430.0,0.00023013,2]
[362523176,1748350261244,-874.8,0.00023013,2]
[362523177,1748350261253,-279.677262,0.00023013,7]
[362523178,1748350261264,-476.0,0.00023013,2]
[362523179,1748350261274,-944.3,0.00023013,2]
[362523180,1748350261285,-430.0,0.00023013,2]
[362523181,1748350261294,-1877.1,0.00023013,2]
[362523182,1748350261305,-430.0,0.00023013,2]
[362523183,1748350261318,-151.0,0.00023013,7]
[362523184,1748350261329,-241.453898,0.00023013,7]
[362523185,1748350261339,-430.0,0.00023013,2]
[362523186,1748350261350,-4.01016919,0.00023013,2]
[362523187,1748350261492,-425.98983081,0.00023013,2]
[362523188,1748350261502,-369.81,0.00023013,2]
[362523189,1748350261512,-172.48130823,0.00023013,2]
[362523190,1748350261752,-1061.77170473,0.00018986,2]
[362523191,1748350261765,-3938.22829527,0.00018986,2]
[362523192,1748350261774,-300.0,0.00019177,2]
[362523193,1748350261784,-388.38073421,0.00019178,2]
[362523194,1748350261796,-41.61926579,0.00019178,2]
[362523195,1748350261806,-430.0,0.00019178,2]
[362523196,1748350261817,-430.0,0.00019178,2]
[362523197,1748350261827,-430.0,0.00019178,2]
[362523198,1748350261836,-430.0,0.00019178,2]
[362523199,1748350261846,-403.25999873,0.00019452,2]
[362523200,1748350261857,-314.71326974,0.00020417,3]
[362523201,1748350261866,-151.0,0.00021176,2]
[362523202,1748350261962,-151.0,0.00021917,2]
[362523203,1748350261972,-151.0,0.00022739,7]
[362523204,1748350261983,-257.51869177,0.00023013,2]
[362523205,1748350261992,-1538.68,0.00023013,2]
[362523206,1748350262002,-726.652147,0.00023013,7]
[362523207,1748350262011,-151.0,0.00023013,7]
[362523208,1748350262021,-726.652147,0.00023013,7]
[362523209,1748350262031,-430.0,0.00023013,2]
[362523210,1748350262041,-998.65,0.00023013,2]
[362523211,1748350262051,-2190.9,0.00023013,2]
[362523212,1748350262061,-1929.8,0.00023013,2]
[362523213,1748350262071,-601.23,0.00023013,2]
[362523214,1748350262081,-430.0,0.00023013,2]
[362523215,1748350262091,-430.0,0.00023013,2]
[362523216,1748350262101,-490.23,0.00023013,2]
[362523217,1748350262111,-510.23,0.00023013,2]
[362523218,1748350262120,-430.0,0.00023013,2]
[362523219,1748350262130,-430.0,0.00023013,2]
[362523220,1748350262140,-430.0,0.00023013,2]
[362523221,1748350262151,-430.0,0.00023013,2]
[362523222,1748350262160,-889.42,0.00023013,2]
[362523223,1748350262170,-499.66,0.00023013,2]
[362523224,1748350262179,-430.0,0.00023013,2]
[362523225,1748350262189,-580.34,0.00023013,2]
[362523226,1748350262199,-566.21,0.00023013,2]
[362523227,1748350262208,-430.0,0.00023013,2]
[362523228,1748350262217,-430.0,0.00023013,2]
[362523229,1748350262228,-961.0,0.00023018,2]
[362523230,1748350262237,-611.61,0.00023018,2]
[362523231,1748350262247,-413.219,0.00023018,2]
[362523232,1748350262257,-153.0,0.00023096,2]
[362523233,1748350262267,-315.2654308,0.00023096,2]
[362523234,1748350262278,-153.0,0.00023096,2]
[362523235,1748350262288,-153.0,0.00023096,2]
[362523236,1748350262297,-153.0,0.00023096,2]
[362523237,1748350262311,-153.0,0.00023096,2]
[362523238,1748350262320,-153.0,0.00023096,2]
[362523239,1748350262330,-420.4473596,0.00023096,2]
[362523240,1748350262340,-4353.75511924,0.00023176,8]
[362523241,1748350262351,-1805.59997419,0.00023188,3]
[362523242,1748350262362,-160.0,0.000232,3]
[362523243,1748350262372,-151.0,0.00023287,2]
[362523244,1748350262381,-151.0,0.00023287,7]
[362523245,1748350262393,-430.0,0.00023287,2]
[362523246,1748350262403,-430.0,0.00023287,2]
[362523247,1748350262412,-874.8,0.00023287,2]
[362523248,1748350262422,-944.3,0.00023287,2]
[362523249,1748350262432,-425.31,0.00023287,2]
[362523250,1748350262442,-1877.1,0.00023287,2]
[362523251,1748350262452,-569.14142627,0.00023287,2]
[362523252,1748350262462,-430.0,0.00023287,2]
[362523253,1748350262476,-430.0,0.00023287,2]
[362523254,1748350262487,-1538.68,0.00023287,2]
[362523255,1748350262496,-430.0,0.00023287,2]
[362523256,1748350262506,-998.65,0.00023287,2]
[362523257,1748350262516,-2190.9,0.00023287,2]
[362523258,1748350262526,-1929.8,0.00023287,2]
[362523259,1748350262536,-601.23,0.00023287,2]
[362523260,1748350262545,-430.0,0.00023287,2]
[362523261,1748350262555,-430.0,0.00023287,2]
[362523262,1748350262565,-490.23,0.00023287,2]
[362523263,1748350262574,-430.0,0.00023287,2]
[362523264,1748350262584,-430.0,0.00023287,2]
[362523265,1748350262595,-430.0,0.00023287,2]
[362523266,1748350262610,-430.0,0.00023287,2]
[362523267,1748350262621,-889.42,0.00023287,2]
[362523268,1748350262631,-499.66,0.00023287,2]
[362523269,1748350262641,-510.9,0.00023287,2]
[362523270,1748350262651,-580.34,0.00023287,2]
[362523271,1748350262661,-566.21,0.00023287,2]
[362523272,1748350262670,-270.35,0.00023287,2]
[362523273,1748350262680,-430.0,0.00023287,2]
[362523274,1748350262690,-4353.75511924,0.00023348,9]
[362523275,1748350262700,-500.0,0.00023355,2]
[362523276,1748350262710,-500.0,0.00023356,3]
[362523277,1748350262719,-500.0,0.00023356,2]
[362523278,1748350262729,-2000.0,0.00023386,3]
[362523279,1748350262740,-500.0,0.00023388,3]
[362523280,1748350262749,-632.2,0.00023388,15]
[362523281,1748350262759,-500.0,0.000234,3]
[362523282,1748350262769,-4353.75511924,0.00023521,9]
[362523283,1748350262779,-312.65,0.00023561,2]
[362523284,1748350262789,-430.0,0.00023561,2]
[362523285,1748350262799,-874.8,0.00023561,2]
[362523286,1748350262809,-944.3,0.00023561,2]
[362523287,1748350262819,-1877.1,0.00023561,2]
[362523288,1748350262829,-229.80965893,0.00023561,2]
[362523289,1748350262839,-430.0,0.00023561,2]
[362523290,1748350262848,-1538.68,0.00023561,2]
[362523291,1748350262863,-430.0,0.00023561,2]
[362523292,1748350262873,-998.65,0.00023561,2]
[362523293,1748350262884,-2190.9,0.00023561,2]
[362523294,1748350262895,-1929.8,0.00023561,2]
[362523295,1748350262904,-601.23,0.00023561,2]
[362523296,1748350262914,-430.0,0.00023561,2]
[362523297,1748350262924,-214.96,0.00023561,2]
[362523298,1748350262933,-490.23,0.00023561,2]
[362523299,1748350262943,-430.0,0.00023561,2]
[362523300,1748350262953,-430.0,0.00023561,2]
[362523301,1748350262964,-889.42,0.00023561,2]
[362523302,1748350262974,-499.66,0.00023561,2]
[362523303,1748350262984,-471.0,0.00023561,2]
[362523304,1748350262994,-298.793124,0.00023561,7]
[362523305,1748350263004,-580.34,0.00023561,2]
[362523306,1748350263014,-186.866004,0.00023561,2]
[362523307,1748350263078,-430.0,0.00019178,2]
[362523308,1748350263089,-430.0,0.00019178,2]
[362523309,1748350263099,-476.0,0.00019178,2]
[362523310,1748350263188,-430.0,0.00019178,2]
[362523311,1748350263199,-379.343996,0.00023561,2]
[362523312,1748350263209,-151.0,0.00023561,7]
[362523313,1748350263218,-478.62,0.00023561,2]
[362523314,1748350263228,-151.0,0.00023561,7]
[362523315,1748350263238,-823.0,0.00023562,2]
[362523316,1748350263248,-4353.75511924,0.00023693,9]
[362523317,1748350263258,-426.53314479,0.00023835,4]
[362523318,1748350263268,-151.0,0.00023835,7]
[362523319,1748350263277,-278.995255,0.00023835,7]
[362523320,1748350263287,-430.0,0.00023835,2]
[362523321,1748350263297,-874.8,0.00023835,2]
[362523322,1748350263309,-944.3,0.00023835,2]
[362523323,1748350263319,-1877.1,0.00023835,2]
[362523324,1748350263328,-405.53,0.00023835,2]
[362523325,1748350263338,-1538.68,0.00023835,2]
[362523326,1748350263349,-430.0,0.00023835,2]
[362523327,1748350263361,-998.65,0.00023835,2]
[362523328,1748350263370,-2190.9,0.00023835,2]
[362523329,1748350263380,-1578.61774877,0.00023835,2]
[362523330,1748350263420,-277.38375,0.00019178,2]
[362523331,1748350263436,-152.61625,0.00019178,2]
[362523332,1748350263446,-430.0,0.00019178,2]
[362523333,1748350263455,-430.0,0.00019178,2]
[362523334,1748350263465,-430.0,0.00019178,2]
[362523335,1748350263475,-258.66020483,0.00019178,2]
[362523336,1748350263487,-171.33979517,0.00019178,2]
[362523337,1748350263497,-351.18225123,0.00023835,2]
[362523338,1748350263507,-601.23,0.00023835,2]
[362523339,1748350263517,-486.23,0.00023835,2]
[362523340,1748350263526,-490.23,0.00023835,2]
[362523341,1748350263536,-169.66,0.00023835,2]
[362523342,1748350263546,-430.0,0.00023835,2]
[362523343,1748350263556,-889.42,0.00023835,2]
[362523344,1748350263566,-499.66,0.00023835,2]
[362523345,1748350263576,-580.34,0.00023835,2]
[362523346,1748350263585,-566.21,0.00023835,2]
[362523347,1748350263595,-4353.75511924,0.00023866,10]
[362523348,1748350263607,-154.6727887,0.0002389,2]
[362523349,1748350263618,-417.6515357,0.0002389,2]
[362523350,1748350263628,-3207.71647721,0.000239,2]
[362523351,1748350263637,-829.657189,0.00023918,2]
[362523352,1748350263647,-829.65718592,0.00023918,2]
[362523353,1748350263657,-151.0,0.00023918,7]
[362523354,1748350263667,-726.652147,0.00023918,7]
[362523355,1748350263677,-151.0,0.00023918,7]
[362523356,1748350263687,-726.652149,0.00023918,7]
[362523357,1748350263697,-314.71326974,0.0002392,7]
[362523358,1748350263707,-160.0,0.00023999,2]
[362523359,1748350263717,-160.43817396,0.00023999,2]
[362523360,1748350263727,-1548.83397832,0.00024,2]
[362523361,1748350263737,-5008.88988049,0.00024,2]
[362523362,1748350263746,-51199.55854639,0.00024,7]
[362523363,1748350263755,-14850.03027776,0.00024,2]
[362523365,1748350389158,300.055702,0.00013699,2]
[362523366,1748350484457,423806.0,0.00024657,120]
[362523368,1748351032567,5000.0,0.00016,2]
[362523369,1748351154826,234.381959,0.00015864,2]
[362523370,1748351239620,5000.0,0.00016,2]
[362523371,1748351251095,-185.68394926,0.00016101,2]
[362523372,1748351256058,4741.93282954,0.00016,2]
[362523373,1748351256080,258.06717046,0.00016,2]
[362523374,1748351271981,5000.0,0.00016,2]
[362523375,1748351287542,5000.0,0.00016,2]
[362523376,1748351303469,5000.0,0.00016,2]
[362523377,1748351318912,2644.21922954,0.00016,2]
[362523378,1748351318945,2355.78077046,0.00016,2]
[362523379,1748351331725,-105.34812928,0.00016101,2]
[362523380,1748351331750,-2814.65187072,0.00016101,5]
[362523381,1748351334619,5000.0,0.00016,2]
[362523382,1748351358240,-7337.85329233,0.00016101,5]
[362523383,1748351358265,-5000.0,0.0001643,2]
[362523384,1748351358288,-155.0,0.00016521,3]
[362523385,1748351358312,-300.0,0.00016596,2]
[362523386,1748351358336,-300.0,0.00016596,2]
[362523387,1748351358359,-162.0,0.00016597,2]
[362523388,1748351358381,-300.0,0.00016597,2]
[362523389,1748351358404,-1200.0,0.00016597,2]
[362523390,1748351358426,-3772.97951186,0.00016598,2]
[362523391,1748351363187,-6227.02048814,0.00016598,2]
[362523392,1748351363212,-314.03,0.00016881,2]
[362523393,1748351363237,-494.0253961,0.0001701,2]
[362523394,1748351363261,-500.0,0.0001701,2]
[362523395,1748351363282,-347.78045874,0.0001701,2]
[362523396,1748351363306,-500.0,0.0001701,2]
[362523397,1748351363326,-515.34264993,0.0001701,2]
[362523398,1748351363347,-500.0,0.0001701,2]
[362523399,1748351363371,-500.0,0.0001701,2]
[362523400,1748351363393,-500.0,0.0001701,2]
[362523401,1748351363414,-500.0,0.0001701,2]
[362523402,1748351363435,-500.0,0.0001701,2]
[362523403,1748351363457,-500.0,0.0001701,2]
[362523404,1748351363481,-500.0,0.0001701,2]
[362523405,1748351363503,-500.0,0.0001701,2]
[362523406,1748351363524,-500.0,0.0001701,2]
[362523407,1748351363545,-500.0,0.0001701,2]
[362523408,1748351363567,-500.0,0.0001701,2]
[362523409,1748351363744,-500.0,0.0001701,2]
[362523410,1748351363769,-500.0,0.0001701,2]
[362523411,1748351363792,-500.0,0.0001701,2]
[362523412,1748351363815,-500.0,0.0001701,2]
[362523413,1748351363836,-500.0,0.0001701,2]
[362523414,1748351363859,-623.4669285,0.0001701,2]
[362523415,1748351363898,-500.0,0.0001701,2]
[362523416,1748351363919,-500.0,0.0001701,2]
[362523417,1748351363941,-500.0,0.0001701,2]
[362523418,1748351363964,-500.0,0.0001701,2]
[362523419,1748351363990,-269.85174,0.0001701,2]
[362523420,1748351364011,-500.0,0.0001701,2]
[362523421,1748351364033,-500.0,0.0001701,2]
[362523422,1748351364053,-500.0,0.0001701,2]
[362523423,1748351364074,-500.0,0.0001701,2]
[362523424,1748351364094,-500.0,0.0001701,2]
[362523425,1748351364116,-354.69418043,0.0001701,2]
[362523426,1748351364135,-500.0,0.0001701,2]
[362523427,1748351364156,-500.0,0.0001701,2]
[362523428,1748351364179,-500.0,0.0001701,2]
[362523429,1748351364200,-500.0,0.0001701,2]
[362523430,1748351364224,-500.0,0.0001701,2]
[362523431,1748351364247,-500.0,0.0001701,2]
[362523432,1748351364270,-500.0,0.0001701,2]
[362523433,1748351364293,-500.0,0.0001701,2]
[362523434,1748351364317,-500.0,0.0001701,2]
[362523435,1748351364341,-500.0,0.0001701,2]
[362523436,1748351364365,-500.0,0.0001701,2]
[362523437,1748351364390,-500.0,0.0001701,2]
[362523438,1748351364415,-500.0,0.0001701,2]
[362523439,1748351364440,-500.0,0.0001701,2]
[362523440,1748351364464,-500.0,0.0001701,2]
[362523441,1748351364492,-500.0,0.0001701,2]
[362523442,1748351364515,-405.15898741,0.0001701,2]
[362523443,1748351364536,-213.54696093,0.0001701,2]
[362523444,1748351364557,-500.0,0.0001701,2]
[362523445,1748351364578,-281.22724636,0.0001701,2]
[362523446,1748351364598,-41996.85702994,0.0001701,2]
[362523447,1748351364620,-515.52758517,0.0001701,2]
[362523448,1748351364641,-4384.3296787,0.00017012,2]
[362523449,1748351364664,-161.34874002,0.00017216,2]
[362523450,1748351364698,-500.0,0.00017314,2]
[362523451,1748351364731,-605.37860224,0.00017314,2]
[362523452,1748351371223,-5000.0,0.0001684,2]
[362523453,1748351371247,-281.22724636,0.0001701,2]
[362523454,1748351371270,-126.64528998,0.00017314,2]
[362523455,1748351371293,-500.0,0.00017314,2]
[362523456,1748351371316,-500.0,0.00017314,2]
[362523457,1748351371341,-732.02389222,0.00017314,2]
[362523458,1748351371363,-422.61531173,0.00017314,2]
[362523459,1748351371388,-732.02389222,0.00017314,2]
[362523460,1748351371411,-500.0,0.00017314,2]
[362523461,1748351371435,-732.02389222,0.00017314,2]
[362523462,1748351371459,-235.95286866,0.00017314,2]
[362523463,1748351371489,-732.02389222,0.00017314,2]
[362523464,1748351371513,-732.02389222,0.00017314,2]
[362523465,1748351371537,-732.02389222,0.00017314,2]
[362523466,1748351371560,-500.0,0.00017314,2]
[362523467,1748351371584,-732.02389222,0.00017314,2]
[362523468,1748351371607,-500.0,0.00017314,2]
[362523469,1748351371631,-732.02389222,0.00017314,2]
[362523470,1748351371656,-500.110744,0.00017314,2]
[362523477,1748351432359,-164.0,0.00016548,3]
[362523478,1748351432370,-250.18008224,0.00016916,2]
[362523479,1748351432522,-58.13991776,0.00016916,2]
[362523480,1748351432532,-523.73958124,0.0001701,2]
[362523481,1748351432543,-500.0,0.0001701,2]
[362523482,1748351432553,-500.0,0.0001701,2]
[362523483,1748351432563,-500.0,0.0001701,2]
[362523484,1748351432573,-174.08484836,0.0001701,2]
[362523485,1748351432583,-500.0,0.0001701,2]
[362523486,1748351432593,-500.0,0.0001701,2]
[362523487,1748351432602,-500.0,0.0001701,2]
[362523488,1748351432611,-500.0,0.0001701,2]
[362523489,1748351432621,-275.18966371,0.0001701,2]
[362523490,1748351432631,-500.0,0.0001701,2]
[362523492,1748351432643,-500.0,0.0001701,2]
[362523494,1748351432653,-500.0,0.0001701,2]
[362523495,1748351432663,-500.0,0.0001701,2]
[362523498,1748351432674,-500.0,0.0001701,2]
[362523499,1748351432684,-500.0,0.0001701,2]
[362523501,1748351432695,-500.0,0.0001701,2]
[362523503,1748351432706,-500.0,0.0001701,2]
[362523504,1748351432717,-500.0,0.0001701,2]
[362523505,1748351432727,-500.0,0.0001701,2]
[362523506,1748351432738,-500.0,0.0001701,2]
[362523507,1748351432748,-500.0,0.0001701,2]
[362523508,1748351432758,-329.85751444,0.0001701,2]
[362523509,1748351432767,-359.62840257,0.0001701,2]
[362523510,1748351432809,-140.37159743,0.0001701,2]
[362523511,1748351432819,-500.0,0.0001701,2]
[362523512,1748351432829,-500.0,0.0001701,2]
[362523513,1748351432839,-428.56114188,0.0001701,2]
[362523514,1748351432848,-338.05452314,0.0001701,2]
[362523515,1748351432858,-5000.0,0.00017141,2]
[362523516,1748351432868,-500.0,0.00017313,2]
[362523517,1748351432878,-500.0,0.00017313,2]
[362523518,1748351432888,-2419.93206049,0.00017313,2]
[362523519,1748351432898,-500.0,0.00017313,2]
[362523520,1748351432907,-603.30540171,0.00017313,2]
[362523521,1748351432917,-500.0,0.00017313,2]
[362523522,1748351432927,-2419.93206049,0.00017313,2]
[362523523,1748351432937,-293.18016761,0.00017313,2]
[362523524,1748351432948,-2419.93206049,0.00017313,2]
[362523525,1748351432958,-2419.93206049,0.00017313,2]
[362523526,1748351432968,-500.0,0.00017313,2]
[362523527,1748351432978,-300.0,0.00017313,2]
[362523528,1748351432988,-1200.0,0.00017313,2]
[362523529,1748351432998,-300.0,0.00017313,2]
[362523530,1748351433008,-300.0,0.00017313,2]